Workbook

Sheet Answers
C1: Sample Final Exam answers
B3: 1a) | C3: =0.2+0.3-0.1 -> 0.4 | D3: =showformula(C3) -> =0.2+0.3-0.1 | F3: Pr(A or B) = Pr(A) + Pr(B) - Pr(A and B)
B4: 1b) | C4: no | D4: Pr(A and B) ≠ Pr(A)×Pr(B)
B5: 1c) | C5: =0.1/0.3 -> 0.3333333333 | D5: =showformula(C5) -> =0.1/0.3 | F5: Pr(A|B) = Pr(A and B) / Pr(B)
B7: 2a) | C7: =1/3 -> 0.3333333333 | D7: common sense
B8: 2b) | C8: =5/14*9/13+9/14*5/13 -> 0.4945054945 | D8: =showformula(C8) -> =5/14*9/13+9/14*5/13 | G8: Given that the first has an MBA, there are 14 left, 5 with MBAs.
G9: Pick two of these: What’s the chance of getting one MBA and one non-MBA?
B11: 2c) | C11: =(6/15)/(1-(9/15)*(8/14)*(7/13)) -> 0.4905660377 | D11: =showformula(C11) -> =(6/15)/(1-(9/15)*(8/14)*(7/13)) | H11: Pr(1st has MBA | at least one MBA)
H12: = Pr(1st has MBA and at least one MBA) / Pr(at least one MBA)
H13: = Pr(1st has MBA) / (1 – Pr(no MBAs))
B15: 3a) | C15: =NORMDIST(101,100+0.1,0.5,TRUE)-NORMDIST(99.5,100+0.1,0.5,TRUE) -> 0.8490000107 | D15: =showformula(C15) -> =NORMDIST(101,100+0.1,0.5,TRUE)-NORMDIST(99.5,100+0.1,0.5,TRUE)
B16: 3b) | C16: =NORMDIST(111,100+52*0.1,SQRT(52)*0.5,TRUE)-NORMDIST(99,100+52*0.1,SQRT(52)*0.5,TRUE) -> 0.9033961658 | D16: =NORMDIST(111,100+52*0.1,SQRT(52)*0.5,TRUE)-NORMDIST(99,100+52*0.1,SQRT(52)*0.5,TRUE)
B18: 4) | C18: =1-(1/2)^5 -> 0.96875 | D18: =1-(1/2)^5
C19: =5*(1/2) -> 2.5 | D19: =5*(1/2)
B21: 5) | C21: =(1-0.1)^3*0.1 -> 0.0729 | D21: =(1-0.1)^3*0.1
B23: 6a) | C23: 14.5 | D23: ± | E23: =_xlfn.T.INV(0.975, 224)*8.2/SQRT(225) -> 1.077267325 | F23: =showformula(E23) -> =T.INV(0.975, 224)*8.2/SQRT(225)
B24: 6b) | C24: =(14.5-15.5) /(8.2/SQRT(225)) -> -1.829268293 | D24: =showformula(C24) -> =(14.5-15.5) /(8.2/SQRT(225)) | G24: The test statistic is t = (14.5-m)/(s/Ön),
C25: =_xlfn.T.DIST(C24,225-1,TRUE) -> 0.0343444135 | D25: = T.DIST(C24,225-1,TRUE) | G25: and so the significance level is = 3.4344%. Or:
C27: 14.5 | D27: estimate/prediction of unknown quantity
C28: =8.2/SQRT(225) -> 0.5466666667 | D28: measure of uncertainty
C29: 225 | D29: sample size
C30: 0 | D30: number of explanatory variables in regression, or
D31: 0 if dealing with a population mean
I33: significance level of data with respect to null hypothesis
C34: Null hypothesis:
F35: ≥ | J35: =IF(C27>=G36,1,TDIST((G36-C27)/C28,C29-1-C30,TRUE)) -> 0.0343444135
E36: true value | F36: = | G36: 15.5 | J36: =2*TDIST(ABS(G36-C27)/C28,C29-1-C30,TRUE) -> 0.06868882699
F37: ≤ | J37: =IF(G36>=C27,1,TDIST((C27-G36)/C28,C29-1-C30,TRUE)) -> 1
J38: ="(from t-distribution with "&TEXT(C29-1-C30,"0")&" degrees of freedom)" -> (from t-distribution with 224 degrees of freedom)
B40: 7a) | C40: =42/300 -> 0.14 | D40: =showformula(C40) -> =42/300
B41: 7b) | C41: =42/300 -> 0.14 | D41: ± | E41: =_xlfn.T.INV(0.975,300-1)*SQRT(0.14*(1-0.14))/SQRT(300) -> 0.03942413646 | F41: =showformula(E41) -> =T.INV(0.975,300-1)*SQRT(0.14*(1-0.14))/SQRT(300)
F42: (This will not be on your exam.)
B44: 8) | C44: =1-NORMDIST(0,C52,C53,TRUE) -> 0.8102222574 | D44: =showformula(C44) -> =1-NORMDIST(0,C52,C53,TRUE) | I44: ﻿claim | J44: probability | L44: profit | M44: probability
I45: =0 -> 0 | J45: 0.99 | L45: =15-0 -> 15 | M45: 0.99
C46: If T is total profit then the expected value of T is | I46: =500 -> 500 | J46: 0.008 | L46: =15-500 -> -485 | M46: 0.008
C47: $40,000. The standard deviation of T is $45,520.98. By | I47: =5000 -> 5000 | J47: 0.002 | L47: =15-5000 -> -4985 | M47: 0.002
C48: the Central Limit Theorem, T will be approximately
C49: normally distributed (since it is the sum of 40,000 | I49: =SUMPRODUCT(I45:I47,J45:J47) -> 14 | J49: E[claim] | K49: =showformula(I49) -> =SUMPRODUCT(I45:I47,J45:J47)
C50: independent random variables). | I50: =SQRT(SUMPRODUCT(I45:I47^2,J45:J47)-I49^2) -> 227.6049209 | J50: StDev(claim) | K50: =showformula(I50) -> =SQRT(SUMPRODUCT(I45:I47^2,J45:J47)-I49^2)
I51: =SUMPRODUCT(L45:L47,M45:M47) -> 1 | J51: E[profit] | K51: =showformula(I51) -> =SUMPRODUCT(L45:L47,M45:M47)
C52: =40000*(15-I49) -> 40000 | D52: E[T] | E52: =showformula(C52) -> =40000*(15-I49) | I52: =SQRT(SUMPRODUCT(L45:L47^2,M45:M47)-I51^2) -> 227.6049209 | J52: StDev(profit) | K52: =showformula(I52) -> =SQRT(SUMPRODUCT(L45:L47^2,M45:M47)-I51^2)
C53: =SQRT(40000)*I50 -> 45520.98417 | D53: StDev(T) | E53: =showformula(C53) -> =SQRT(40000)*I50
I54: (The $15 payment from everyone doesn't change the variability.)
B56: 9) | C56: There is a strong potential for sample bias in this case. It would depend on whether there is a
C57: correlation between the size of a household and the likelihood that someone is home to
C58: answer the door when an interviewer arrives. It may be reasonable to expect that these two
C59: things are positively correlated: Larger households are more likely to have at least one
C60: household member at home, and households with children could also be more likely to be at
C61: home. By dismissing the observations for which no one is home, the School District may be
C62: underrepresenting households with just one or two members. In this case, the District’s
C63: household size estimate likely would be too high.
